[Event "Titled Tuesday Blitz April 4 Early 2023"]
[White "Kubatko, Ivan"]
[Black "Guzman Moneo, Alberto"]
[WhiteFideId "24111473"]
[BlackFideId "2209616"]
[WhiteElo "2285"]
[BlackElo "2157"]
[Result "1-0"]
[Round "11"]
[TimeControl "180+2"]
[Date "2023.04.04"]
[WhiteClock "0:00:15"]
[BlackClock "0:00:15"]

1. e4 {[%clk 0:02:57]}  c5 {[%clk 0:02:59]} 2. c3 {[%clk 0:02:52]}  e6 {[%clk 0:02:55]} 3. d4 {[%clk 0:02:52]}  d5 {[%clk 0:02:55]} 4. exd5 {[%clk 0:02:50]}  exd5 {[%clk 0:02:55]} 5. Nf3 {[%clk 0:02:51]}  Nc6 {[%clk 0:02:55]} 6. Bd3 {[%clk 0:02:51]}  Bd6 {[%clk 0:02:54]} 7. O-O {[%clk 0:02:50]}  Nge7 {[%clk 0:02:54]} 8. h3 {[%clk 0:02:39]}  O-O {[%clk 0:02:53]} 9. dxc5 {[%clk 0:02:38]}  Bxc5 {[%clk 0:02:53]} 10. Nbd2 {[%clk 0:02:36]}  Bf5 {[%clk 0:02:50]} 11. Nb3 {[%clk 0:02:36]}  Bd6 {[%clk 0:02:47]} 12. Re1 {[%clk 0:02:28]}  Qd7 {[%clk 0:02:44]} 13. Nbd4 {[%clk 0:02:24]}  Nxd4 {[%clk 0:02:40]} 14. Nxd4 {[%clk 0:02:24]}  Bxd3 {[%clk 0:02:38]} 15. Qxd3 {[%clk 0:02:22]}  Nc6 {[%clk 0:02:38]} 16. Nf5 {[%clk 0:02:02]}  Rfe8 {[%clk 0:02:31]} 17. Be3 {[%clk 0:01:40]}  Ne5 {[%clk 0:02:24]} 18. Qxd5 {[%clk 0:01:38]}  Qxf5 {[%clk 0:02:12]} 19. Qxd6 {[%clk 0:01:37]}  Re6 {[%clk 0:02:04]} 20. Qd5 {[%clk 0:01:08]}  Rae8 {[%clk 0:01:56]} 21. Kh1 {[%clk 0:00:23]}  b6 {[%clk 0:01:27]} 22. Bd4 {[%clk 0:00:21]}  h5 {[%clk 0:01:14]} 23. Qe4 {[%clk 0:00:16]}  Qxe4 {[%clk 0:01:12]} 24. Rxe4 {[%clk 0:00:17]}  Nc4 {[%clk 0:01:12]} 25. Rxe6 {[%clk 0:00:17]}  Rxe6 {[%clk 0:01:12]} 26. b3 {[%clk 0:00:17]}  Na3 {[%clk 0:01:06]} 27. Kg1 {[%clk 0:00:09]}  Re2 {[%clk 0:01:03]} 28. Kf1 {[%clk 0:00:09]}  Rc2 {[%clk 0:01:00]} 29. c4 {[%clk 0:00:07]}  f6 {[%clk 0:00:50]} 30. Ke1 {[%clk 0:00:07]}  Nxc4 {[%clk 0:00:35]} 31. bxc4 {[%clk 0:00:07]}  Rxc4 {[%clk 0:00:36]} 32. Be3 {[%clk 0:00:07]}  Kf7 {[%clk 0:00:35]} 33. Rc1 {[%clk 0:00:07]}  Ra4 {[%clk 0:00:34]} 34. Rc2 {[%clk 0:00:08]}  g5 {[%clk 0:00:34]} 35. Ke2 {[%clk 0:00:08]}  g4 {[%clk 0:00:34]} 36. Bd2 {[%clk 0:00:09]}  gxh3 {[%clk 0:00:32]} 37. gxh3 {[%clk 0:00:09]}  Kg6 {[%clk 0:00:32]} 38. Bc1 {[%clk 0:00:09]}  Kf5 {[%clk 0:00:31]} 39. a3 {[%clk 0:00:09]}  Kg6 {[%clk 0:00:28]} 40. Rc3 {[%clk 0:00:09]}  a5 {[%clk 0:00:26]} 41. Bb2 {[%clk 0:00:09]}  Rf4 {[%clk 0:00:23]} 42. Rf3 {[%clk 0:00:09]}  Re4+ {[%clk 0:00:23]} 43. Kd2 {[%clk 0:00:10]}  f5 {[%clk 0:00:23]} 44. Rg3+ {[%clk 0:00:09]}  Kf7 {[%clk 0:00:21]} 45. Rf3 {[%clk 0:00:09]}  Ke6 {[%clk 0:00:21]} 46. Rb3 {[%clk 0:00:09]}  Rh4 {[%clk 0:00:17]} 47. Rxb6+ {[%clk 0:00:10]}  Kd5 {[%clk 0:00:17]} 48. Rb3 {[%clk 0:00:10]}  a4 {[%clk 0:00:16]} 49. Rd3+ {[%clk 0:00:10]}  Kc4 {[%clk 0:00:16]} 50. Rc3+ {[%clk 0:00:09]}  Kb5 {[%clk 0:00:16]} 51. Ke2 {[%clk 0:00:08]}  Re4+ {[%clk 0:00:16]} 52. Re3 {[%clk 0:00:08]}  Rh4 {[%clk 0:00:14]} 53. Kf1 {[%clk 0:00:08]}  Rc4 {[%clk 0:00:13]} 54. Kg2 {[%clk 0:00:08]}  Rc2 {[%clk 0:00:13]} 55. Bf6 {[%clk 0:00:07]}  Kc4 {[%clk 0:00:14]} 56. Be7 {[%clk 0:00:07]}  Kd5 {[%clk 0:00:14]} 57. Bb4 {[%clk 0:00:07]}  f4 {[%clk 0:00:11]} 58. Re8 {[%clk 0:00:06]}  Rb2 {[%clk 0:00:07]} 59. Rh8 {[%clk 0:00:06]}  Rb3 {[%clk 0:00:07]} 60. Rxh5+ {[%clk 0:00:06]}  Ke4 {[%clk 0:00:08]} 61. Rh8 {[%clk 0:00:05]}  f3+ {[%clk 0:00:08]} 62. Kg3 {[%clk 0:00:05]}  Kf5 {[%clk 0:00:07]} 63. Rf8+ {[%clk 0:00:06]}  Kg6 {[%clk 0:00:08]} 64. Rxf3 {[%clk 0:00:06]}  Rb1 {[%clk 0:00:08]} 65. h4 {[%clk 0:00:06]}  Kh5 {[%clk 0:00:09]} 66. Rf5+ {[%clk 0:00:06]}  Kg6 {[%clk 0:00:09]} 67. Rg5+ {[%clk 0:00:07]}  Kh6 {[%clk 0:00:09]} 68. Ra5 {[%clk 0:00:07]}  Rg1+ {[%clk 0:00:09]} 69. Kf3 {[%clk 0:00:07]}  Rh1 {[%clk 0:00:09]} 70. h5 {[%clk 0:00:08]}  Rh3+ {[%clk 0:00:07]} 71. Kg2 {[%clk 0:00:08]}  Rb3 {[%clk 0:00:08]} 72. Bf8+ {[%clk 0:00:08]}  Kh7 {[%clk 0:00:08]} 73. h6 {[%clk 0:00:09]}  Rb6 {[%clk 0:00:06]} 74. Rxa4 {[%clk 0:00:09]}  Rg6+ {[%clk 0:00:06]} 75. Kf1 {[%clk 0:00:08]}  Rc6 {[%clk 0:00:05]} 76. Bg7 {[%clk 0:00:09]}  Kg6 {[%clk 0:00:04]} 77. Rb4 {[%clk 0:00:08]}  Rc1+ {[%clk 0:00:03]} 78. Kg2 {[%clk 0:00:08]}  Rc2 {[%clk 0:00:04]} 79. a4 {[%clk 0:00:08]}  Ra2 {[%clk 0:00:04]} 80. Bf8 {[%clk 0:00:08]}  Kh7 {[%clk 0:00:05]} 81. Rb7+ {[%clk 0:00:08]}  Kg8 {[%clk 0:00:05]} 82. h7+ {[%clk 0:00:08]}  Kh8 {[%clk 0:00:06]} 83. Bg7+ {[%clk 0:00:06]}  Kxh7 {[%clk 0:00:05]} 84. Bd4+ {[%clk 0:00:06]}  Kg6 {[%clk 0:00:06]} 85. Ra7 {[%clk 0:00:06]}  Kf5 {[%clk 0:00:06]} 86. Be3 {[%clk 0:00:06]}  Ke4 {[%clk 0:00:07]} 87. a5 {[%clk 0:00:07]}  Kd5 {[%clk 0:00:07]} 88. a6 {[%clk 0:00:07]}  Kc6 {[%clk 0:00:08]} 89. Ra8 {[%clk 0:00:08]}  Kd7 {[%clk 0:00:08]} 90. a7 {[%clk 0:00:08]}  Kc7 {[%clk 0:00:08]} 91. Rh8 {[%clk 0:00:08]}  Kb7 {[%clk 0:00:08]} 92. a8=Q+ {[%clk 0:00:08]}  Rxa8 {[%clk 0:00:08]} 93. Rxa8 {[%clk 0:00:09]}  Kxa8 {[%clk 0:00:09]} 94. Kf3 {[%clk 0:00:10]}  Kb7 {[%clk 0:00:10]} 95. Ke4 {[%clk 0:00:11]}  Kc8 {[%clk 0:00:10]} 96. Kf5 {[%clk 0:00:12]}  Kd7 {[%clk 0:00:11]} 97. Kf6 {[%clk 0:00:12]}  Ke8 {[%clk 0:00:12]} 98. Kg7 {[%clk 0:00:12]}  Ke7 {[%clk 0:00:12]} 99. f4 {[%clk 0:00:12]}  Ke6 {[%clk 0:00:13]} 100. Kg6 {[%clk 0:00:13]}  Ke7 {[%clk 0:00:14]} 101. Bc5+ {[%clk 0:00:13]}  Ke8 {[%clk 0:00:13]} 102. f5 {[%clk 0:00:13]}  Kd7 {[%clk 0:00:13]} 103. f6 {[%clk 0:00:14]}  Kc6 {[%clk 0:00:14]} 104. f7 {[%clk 0:00:14]}  Kd5 {[%clk 0:00:14]} 105. f8=Q {[%clk 0:00:15]}  Ke4 {[%clk 0:00:15]} 106. Qf5# {[%clk 0:00:15]} 1-0


[Site "https://www.chess.com"]

[Event "Titled Tuesday Blitz April 4 Early 2023"]
[White "Weetik, Vjacheslav"]
[Black "Goffredo_Fofi"]
[WhiteFideId "4153472"]
[WhiteElo "2469"]
[BlackElo "2512"]
[Result "1-0"]
[Round "11"]
[TimeControl "180+2"]
[Date "2023.04.04"]
[WhiteClock "0:00:07"]
[BlackClock "0:00:06"]

1. e4 {[%clk 0:02:54]}  Nf6 {[%clk 0:03:00]} 2. e5 {[%clk 0:02:54]}  Nd5 {[%clk 0:03:00]} 3. d4 {[%clk 0:02:55]}  d6 {[%clk 0:03:00]} 4. Nf3 {[%clk 0:02:55]}  dxe5 {[%clk 0:03:01]} 5. Nxe5 {[%clk 0:02:55]}  c6 {[%clk 0:03:02]} 6. Be2 {[%clk 0:02:55]}  Bf5 {[%clk 0:03:00]} 7. g4 {[%clk 0:02:55]}  Be6 {[%clk 0:02:59]} 8. c4 {[%clk 0:02:51]}  Nb4 {[%clk 0:02:18]} 9. Be3 {[%clk 0:02:47]}  Nd7 {[%clk 0:02:18]} 10. f4 {[%clk 0:02:40]}  f6 {[%clk 0:02:07]} 11. Nxd7 {[%clk 0:02:21]}  Qxd7 {[%clk 0:02:03]} 12. Nc3 {[%clk 0:02:18]}  Bf7 {[%clk 0:01:51]} 13. O-O {[%clk 0:02:11]}  e6 {[%clk 0:01:48]} 14. a3 {[%clk 0:02:02]}  Na6 {[%clk 0:01:47]} 15. d5 {[%clk 0:02:02]}  Bc5 {[%clk 0:01:41]} 16. Bxc5 {[%clk 0:02:01]}  Nxc5 {[%clk 0:01:41]} 17. b4 {[%clk 0:02:00]}  Na6 {[%clk 0:01:36]} 18. d6 {[%clk 0:01:56]}  c5 {[%clk 0:01:30]} 19. b5 {[%clk 0:01:49]}  Nb8 {[%clk 0:01:28]} 20. Qd3 {[%clk 0:01:45]}  a6 {[%clk 0:01:25]} 21. a4 {[%clk 0:01:40]}  axb5 {[%clk 0:01:24]} 22. cxb5 {[%clk 0:01:40]}  b6 {[%clk 0:01:17]} 23. Rad1 {[%clk 0:01:21]}  Ra7 {[%clk 0:01:08]} 24. f5 {[%clk 0:01:19]}  e5 {[%clk 0:01:04]} 25. Bf3 {[%clk 0:01:17]}  O-O {[%clk 0:01:00]} 26. Bd5 {[%clk 0:01:12]}  Kh8 {[%clk 0:00:38]} 27. Qc4 {[%clk 0:01:06]}  Bxd5 {[%clk 0:00:33]} 28. Rxd5 {[%clk 0:01:05]}  Qf7 {[%clk 0:00:33]} 29. Rfd1 {[%clk 0:00:53]}  Nd7 {[%clk 0:00:33]} 30. Ne4 {[%clk 0:00:50]}  Rfa8 {[%clk 0:00:31]} 31. Nc3 {[%clk 0:00:47]}  g6 {[%clk 0:00:27]} 32. Qe4 {[%clk 0:00:44]}  Rg8 {[%clk 0:00:22]} 33. R5d3 {[%clk 0:00:43]}  gxf5 {[%clk 0:00:20]} 34. Qxf5 {[%clk 0:00:43]}  Qc4 {[%clk 0:00:18]} 35. Rg3 {[%clk 0:00:39]}  Rg5 {[%clk 0:00:16]} 36. Qe4 {[%clk 0:00:34]}  Qxe4 {[%clk 0:00:14]} 37. Nxe4 {[%clk 0:00:34]}  Rg6 {[%clk 0:00:14]} 38. Nc3 {[%clk 0:00:33]}  Ra8 {[%clk 0:00:15]} 39. h3 {[%clk 0:00:26]}  h5 {[%clk 0:00:13]} 40. Kf2 {[%clk 0:00:26]}  hxg4 {[%clk 0:00:13]} 41. hxg4 {[%clk 0:00:26]}  Kg7 {[%clk 0:00:14]} 42. Kf3 {[%clk 0:00:22]}  Rh8 {[%clk 0:00:13]} 43. Nd5 {[%clk 0:00:21]}  Ra8 {[%clk 0:00:12]} 44. Ne7 {[%clk 0:00:21]}  Rg5 {[%clk 0:00:12]} 45. Nf5+ {[%clk 0:00:21]}  Kf7 {[%clk 0:00:11]} 46. Ra1 {[%clk 0:00:21]}  Ke6 {[%clk 0:00:11]} 47. Rh3 {[%clk 0:00:19]}  Rag8 {[%clk 0:00:10]} 48. Rg1 {[%clk 0:00:15]}  e4+ {[%clk 0:00:09]} 49. Kf4 {[%clk 0:00:15]}  Ne5 {[%clk 0:00:08]} 50. Ne3 {[%clk 0:00:08]}  Kxd6 {[%clk 0:00:07]} 51. Rh7 {[%clk 0:00:07]}  R8g7 {[%clk 0:00:06]} 52. Nf5+ {[%clk 0:00:07]}  Rxf5+ {[%clk 0:00:06]} 53. Kxf5 {[%clk 0:00:07]}  Rxh7 {[%clk 0:00:06]} 54. Kxe4 {[%clk 0:00:06]}  Rg7 {[%clk 0:00:06]} 55. Kf5 {[%clk 0:00:07]}  Rxg4 {[%clk 0:00:05]} 56. Rxg4 {[%clk 0:00:06]}  Nxg4 {[%clk 0:00:06]} 57. Kxg4 {[%clk 0:00:07]}  c4 {[%clk 0:00:07]} 58. Kf4 {[%clk 0:00:07]}  c3 {[%clk 0:00:07]} 59. Ke3 {[%clk 0:00:08]}  f5 {[%clk 0:00:07]} 60. Kd3 {[%clk 0:00:08]}  f4 {[%clk 0:00:03]} 61. Kxc3 {[%clk 0:00:09]}  f3 {[%clk 0:00:04]} 62. Kd3 {[%clk 0:00:09]}  Kc5 {[%clk 0:00:04]} 63. Ke3 {[%clk 0:00:08]}  Kb4 {[%clk 0:00:05]} 64. a5 {[%clk 0:00:08]}  Ka4 {[%clk 0:00:06]} 65. a6 {[%clk 0:00:07]} 1-0


[Site "https://www.chess.com"]

[Event "Titled Tuesday Blitz April 4 Early 2023"]
[White "Krsnik Cohar, Ivan Vihor"]
[Black "Sokolovsky, Yahli"]
[WhiteFideId "14520044"]
[BlackFideId "2820242"]
[WhiteElo "2414"]
[BlackElo "2316"]
[Result "0-1"]
[Round "11"]
[TimeControl "180+2"]
[Date "2023.04.04"]
[WhiteClock "0:00:04"]
[BlackClock "0:00:06"]

1. e4 {[%clk 0:03:00]}  d6 {[%clk 0:02:54]} 2. Nf3 {[%clk 0:03:01]}  g6 {[%clk 0:02:54]} 3. Nc3 {[%clk 0:03:02]}  Bg7 {[%clk 0:02:54]} 4. d4 {[%clk 0:03:02]}  a6 {[%clk 0:02:55]} 5. a4 {[%clk 0:03:02]}  b6 {[%clk 0:02:55]} 6. Bc4 {[%clk 0:03:03]}  Bd7 {[%clk 0:02:55]} 7. O-O {[%clk 0:03:03]}  e6 {[%clk 0:02:55]} 8. Re1 {[%clk 0:03:02]}  Ne7 {[%clk 0:02:53]} 9. b4 {[%clk 0:03:02]}  O-O {[%clk 0:02:53]} 10. a5 {[%clk 0:02:55]}  c5 {[%clk 0:02:51]} 11. bxc5 {[%clk 0:02:39]}  bxc5 {[%clk 0:02:47]} 12. Be3 {[%clk 0:02:09]}  Nbc6 {[%clk 0:02:46]} 13. Qd2 {[%clk 0:02:09]}  Nxa5 {[%clk 0:02:35]} 14. Bf1 {[%clk 0:02:04]}  cxd4 {[%clk 0:02:22]} 15. Bxd4 {[%clk 0:02:01]}  Qc7 {[%clk 0:02:12]} 16. Red1 {[%clk 0:01:49]}  e5 {[%clk 0:01:55]} 17. Be3 {[%clk 0:01:46]}  Rfc8 {[%clk 0:01:44]} 18. Qxd6 {[%clk 0:01:36]}  Qxd6 {[%clk 0:01:24]} 19. Rxd6 {[%clk 0:01:36]}  Be6 {[%clk 0:01:22]} 20. Na4 {[%clk 0:01:01]}  Nb7 {[%clk 0:01:18]} 21. Rb6 {[%clk 0:00:56]}  Nd8 {[%clk 0:01:02]} 22. Nc5 {[%clk 0:00:55]}  a5 {[%clk 0:01:01]} 23. Ng5 {[%clk 0:00:48]}  Rc6 {[%clk 0:00:53]} 24. Ncxe6 {[%clk 0:00:40]}  Nxe6 {[%clk 0:00:38]} 25. Nxe6 {[%clk 0:00:38]}  fxe6 {[%clk 0:00:39]} 26. Rxc6 {[%clk 0:00:27]}  Nxc6 {[%clk 0:00:40]} 27. Bc4 {[%clk 0:00:28]}  Kf7 {[%clk 0:00:38]} 28. Bb3 {[%clk 0:00:19]}  Nd4 {[%clk 0:00:37]} 29. Bd2 {[%clk 0:00:15]}  Nc6 {[%clk 0:00:29]} 30. Kf1 {[%clk 0:00:12]}  Bf8 {[%clk 0:00:28]} 31. Ba4 {[%clk 0:00:09]}  Nd4 {[%clk 0:00:23]} 32. Rb1 {[%clk 0:00:09]}  Ra7 {[%clk 0:00:09]} 33. c3 {[%clk 0:00:09]}  Bc5 {[%clk 0:00:05]} 34. cxd4 {[%clk 0:00:09]}  exd4 {[%clk 0:00:06]} 35. e5 {[%clk 0:00:08]}  d3 {[%clk 0:00:04]} 36. Rb5 {[%clk 0:00:08]}  Bd4 {[%clk 0:00:05]} 37. Rxa5 {[%clk 0:00:07]}  Rc7 {[%clk 0:00:04]} 38. g3 {[%clk 0:00:04]}  Rb7 {[%clk 0:00:04]} 39. Be3 {[%clk 0:00:02]}  Rb1+ {[%clk 0:00:03]} 40. Kg2 {[%clk 0:00:02]}  Bxe3 {[%clk 0:00:03]} 41. fxe3 {[%clk 0:00:03]}  Ra1 {[%clk 0:00:02]} 42. Ra7+ {[%clk 0:00:02]}  Kf8 {[%clk 0:00:02]} 43. Kf3 {[%clk 0:00:03]}  d2 {[%clk 0:00:02]} 44. Ke2 {[%clk 0:00:03]}  d1=Q+ {[%clk 0:00:02]} 45. Bxd1 {[%clk 0:00:02]}  Rxa7 {[%clk 0:00:03]} 46. Bb3 {[%clk 0:00:03]}  Ke7 {[%clk 0:00:04]} 47. Kf3 {[%clk 0:00:03]}  Ra5 {[%clk 0:00:04]} 48. Kf4 {[%clk 0:00:03]}  Ra3 {[%clk 0:00:05]} 49. Bc4 {[%clk 0:00:04]}  Ra1 {[%clk 0:00:06]} 50. h4 {[%clk 0:00:04]}  Ra4 {[%clk 0:00:06]} 0-1


[Site "https://www.chess.com"]

[Event "Titled Tuesday Blitz April 4 Early 2023"]
[White "Florescu, Codrut-Constantin"]
[Black "TheKnightOfBosnia"]
[WhiteFideId "1202200"]
[WhiteElo "2191"]
[BlackElo "2508"]
[Result "1-0"]
[Round "11"]
[TimeControl "180+2"]
[Date "2023.04.04"]
[WhiteClock "0:01:09"]
[BlackClock "0:00:36"]

1. e4 {[%clk 0:03:00]}  e5 {[%clk 0:03:00]} 2. Nf3 {[%clk 0:03:00]}  Nc6 {[%clk 0:03:00]} 3. Bc4 {[%clk 0:03:00]}  Nf6 {[%clk 0:03:00]} 4. d3 {[%clk 0:03:00]}  Bc5 {[%clk 0:03:00]} 5. h3 {[%clk 0:03:00]}  d6 {[%clk 0:02:58]} 6. c3 {[%clk 0:03:00]}  a5 {[%clk 0:02:53]} 7. a4 {[%clk 0:03:00]}  h6 {[%clk 0:02:53]} 8. Nbd2 {[%clk 0:02:59]}  Bb6 {[%clk 0:02:46]} 9. Qe2 {[%clk 0:02:58]}  Be6 {[%clk 0:02:42]} 10. Bxe6 {[%clk 0:02:55]}  fxe6 {[%clk 0:02:42]} 11. Nf1 {[%clk 0:02:54]}  O-O {[%clk 0:02:42]} 12. Ng3 {[%clk 0:02:54]}  Ne7 {[%clk 0:02:39]} 13. d4 {[%clk 0:02:50]}  exd4 {[%clk 0:02:34]} 14. cxd4 {[%clk 0:02:50]}  Ng6 {[%clk 0:02:34]} 15. O-O {[%clk 0:02:50]}  Qd7 {[%clk 0:02:18]} 16. Bd2 {[%clk 0:02:48]}  Rae8 {[%clk 0:02:17]} 17. Rfe1 {[%clk 0:02:42]}  Qf7 {[%clk 0:02:13]} 18. Rec1 {[%clk 0:02:26]}  d5 {[%clk 0:02:12]} 19. e5 {[%clk 0:02:24]}  Nh7 {[%clk 0:02:10]} 20. b4 {[%clk 0:02:21]}  axb4 {[%clk 0:02:06]} 21. a5 {[%clk 0:02:20]}  Ba7 {[%clk 0:02:04]} 22. Bxb4 {[%clk 0:02:20]}  Nf4 {[%clk 0:02:04]} 23. Qe3 {[%clk 0:02:17]}  c6 {[%clk 0:01:55]} 24. Bxf8 {[%clk 0:02:14]}  Rxf8 {[%clk 0:01:56]} 25. Kh2 {[%clk 0:02:09]}  h5 {[%clk 0:01:44]} 26. a6 {[%clk 0:02:08]}  bxa6 {[%clk 0:01:36]} 27. Rxc6 {[%clk 0:02:07]}  g5 {[%clk 0:01:36]} 28. Raxa6 {[%clk 0:01:48]}  g4 {[%clk 0:01:11]} 29. hxg4 {[%clk 0:01:41]}  hxg4 {[%clk 0:01:12]} 30. Nh4 {[%clk 0:01:40]}  Qe7 {[%clk 0:01:05]} 31. Nhf5 {[%clk 0:01:33]}  Qg5 {[%clk 0:00:35]} 32. Rxa7 {[%clk 0:01:25]}  exf5 {[%clk 0:00:35]} 33. Rcc7 {[%clk 0:01:15]}  Qh6+ {[%clk 0:00:35]} 34. Kg1 {[%clk 0:01:15]}  Ng5 {[%clk 0:00:35]} 35. Qxf4 {[%clk 0:01:10]}  Nh3+ {[%clk 0:00:34]} 36. gxh3 {[%clk 0:01:10]}  Qxf4 {[%clk 0:00:34]} 37. Rg7+ {[%clk 0:01:10]}  Kh8 {[%clk 0:00:35]} 38. Rh7+ {[%clk 0:01:10]}  Kg8 {[%clk 0:00:36]} 39. Rag7# {[%clk 0:01:09]} 1-0


[Site "https://www.chess.com"]

[Event "Titled Tuesday Blitz April 4 Early 2023"]
[White "Jaskolka, Tomasz"]
[Black "Poliakova, Varvara"]
[WhiteFideId "1170791"]
[BlackFideId "13518313"]
[WhiteElo "2155"]
[BlackElo "2075"]
[Result "0-1"]
[Round "11"]
[TimeControl "180+2"]
[Date "2023.04.04"]
[WhiteClock "0:00:26"]
[BlackClock "0:01:22"]

1. d4 {[%clk 0:02:48]}  e5 {[%clk 0:02:57]} 2. dxe5 {[%clk 0:02:46]}  d6 {[%clk 0:02:58]} 3. exd6 {[%clk 0:02:44]}  Bxd6 {[%clk 0:02:59]} 4. e4 {[%clk 0:02:38]}  Nc6 {[%clk 0:02:57]} 5. Nf3 {[%clk 0:02:38]}  Bg4 {[%clk 0:02:55]} 6. Be2 {[%clk 0:02:38]}  Nf6 {[%clk 0:02:52]} 7. Nc3 {[%clk 0:02:38]}  Qe7 {[%clk 0:02:51]} 8. Bg5 {[%clk 0:02:38]}  O-O-O {[%clk 0:02:42]} 9. Qc1 {[%clk 0:02:37]}  h6 {[%clk 0:02:36]} 10. Nd5 {[%clk 0:02:31]}  Qxe4 {[%clk 0:02:34]} 11. Nxf6 {[%clk 0:02:28]}  gxf6 {[%clk 0:02:34]} 12. Bxf6 {[%clk 0:02:29]}  Rhe8 {[%clk 0:02:34]} 13. Qe3 {[%clk 0:02:21]}  Qb4+ {[%clk 0:02:30]} 14. Qc3 {[%clk 0:02:21]}  Qf4 {[%clk 0:02:26]} 15. a3 {[%clk 0:01:43]}  Qe4 {[%clk 0:02:18]} 16. O-O-O {[%clk 0:01:31]}  Qxe2 {[%clk 0:02:11]} 17. Bxd8 {[%clk 0:01:31]}  Rxd8 {[%clk 0:02:10]} 18. Kb1 {[%clk 0:01:11]}  Bxf3 {[%clk 0:02:06]} 19. gxf3 {[%clk 0:01:11]}  Qxf2 {[%clk 0:02:04]} 20. Rd2 {[%clk 0:01:07]}  Qb6 {[%clk 0:02:04]} 21. Rhd1 {[%clk 0:01:07]}  Re8 {[%clk 0:02:00]} 22. Qf6 {[%clk 0:01:02]}  Bxa3 {[%clk 0:01:57]} 23. Qf5+ {[%clk 0:01:02]}  Kb8 {[%clk 0:01:55]} 24. c3 {[%clk 0:00:56]}  a5 {[%clk 0:01:51]} 25. Qxf7 {[%clk 0:00:55]}  Rc8 {[%clk 0:01:46]} 26. Qe6 {[%clk 0:00:48]}  Rf8 {[%clk 0:01:44]} 27. Qe4 {[%clk 0:00:29]}  Qb3 {[%clk 0:01:39]} 28. Qc2 {[%clk 0:00:27]}  Qxc2+ {[%clk 0:01:36]} 29. Kxc2 {[%clk 0:00:28]}  Bd6 {[%clk 0:01:37]} 30. Rd3 {[%clk 0:00:28]}  Ne5 {[%clk 0:01:37]} 31. Rd5 {[%clk 0:00:28]}  Rxf3 {[%clk 0:01:37]} 32. Rxa5 {[%clk 0:00:28]}  Rf2+ {[%clk 0:01:36]} 33. Kc1 {[%clk 0:00:26]}  Nc4 {[%clk 0:01:36]} 34. Ra2 {[%clk 0:00:25]}  Rxh2 {[%clk 0:01:35]} 35. Rg1 {[%clk 0:00:24]}  Bf4+ {[%clk 0:01:34]} 36. Kb1 {[%clk 0:00:24]}  Bg5 {[%clk 0:01:35]} 37. Rf1 {[%clk 0:00:24]}  Nd2+ {[%clk 0:01:36]} 38. Ka1 {[%clk 0:00:24]}  Nxf1 {[%clk 0:01:37]} 39. Ra5 {[%clk 0:00:23]}  Nd2 {[%clk 0:01:35]} 40. Ka2 {[%clk 0:00:23]}  Nc4 {[%clk 0:01:35]} 41. Rc5 {[%clk 0:00:23]}  Rxb2+ {[%clk 0:01:35]} 42. Ka1 {[%clk 0:00:24]}  b5 {[%clk 0:01:31]} 43. Rf5 {[%clk 0:00:24]}  Rb3 {[%clk 0:01:30]} 44. Ka2 {[%clk 0:00:23]}  Rxc3 {[%clk 0:01:30]} 45. Rxb5+ {[%clk 0:00:23]}  Kc8 {[%clk 0:01:30]} 46. Rf5 {[%clk 0:00:24]}  Ra3+ {[%clk 0:01:28]} 47. Kb1 {[%clk 0:00:24]}  Re3 {[%clk 0:01:28]} 48. Ka2 {[%clk 0:00:24]}  Nd6 {[%clk 0:01:27]} 49. Rf8+ {[%clk 0:00:24]}  Kd7 {[%clk 0:01:27]} 50. Rh8 {[%clk 0:00:25]}  c5 {[%clk 0:01:26]} 51. Kb2 {[%clk 0:00:25]}  c4 {[%clk 0:01:27]} 52. Kc2 {[%clk 0:00:26]}  Rh3 {[%clk 0:01:27]} 53. Rh7+ {[%clk 0:00:26]}  Kc6 {[%clk 0:01:27]} 54. Kb1 {[%clk 0:00:26]}  Kc5 {[%clk 0:01:28]} 55. Ka2 {[%clk 0:00:26]}  Kd4 {[%clk 0:01:28]} 56. Ka1 {[%clk 0:00:27]}  Nb5 {[%clk 0:01:29]} 57. Ka2 {[%clk 0:00:28]}  Nc3+ {[%clk 0:01:29]} 58. Ka1 {[%clk 0:00:28]}  Rh1+ {[%clk 0:01:28]} 59. Kb2 {[%clk 0:00:28]}  Nd1+ {[%clk 0:01:25]} 60. Ka3 {[%clk 0:00:29]}  Ne3 {[%clk 0:01:24]} 61. Ka2 {[%clk 0:00:29]}  c3 {[%clk 0:01:24]} 62. Rd7+ {[%clk 0:00:28]}  Ke4 {[%clk 0:01:24]} 63. Kb3 {[%clk 0:00:27]}  Bf6 {[%clk 0:01:23]} 64. Rc7 {[%clk 0:00:25]}  Rb1+ {[%clk 0:01:22]} 65. Ka2 {[%clk 0:00:26]}  Rb2+ {[%clk 0:01:22]} 66. Ka1 {[%clk 0:00:26]}  Nc2# {[%clk 0:01:22]} 0-1


[Site "https://www.chess.com"]

[Event "Titled Tuesday Blitz April 4 Early 2023"]
[White "Jakubowski, Krzysztof"]
[Black "Shubenkova, Veronika"]
[WhiteFideId "1112848"]
[BlackFideId "44124040"]
[WhiteElo "2359"]
[BlackElo "2027"]
[Result "1/2-1/2"]
[Round "11"]
[TimeControl "180+2"]
[Date "2023.04.04"]
[WhiteClock "0:00:08"]
[BlackClock "0:00:16"]

1. e4 {[%clk 0:03:00]}  e6 {[%clk 0:02:59]} 2. d3 {[%clk 0:02:59]}  d5 {[%clk 0:02:59]} 3. Nd2 {[%clk 0:02:59]}  Nf6 {[%clk 0:02:58]} 4. Ngf3 {[%clk 0:02:59]}  c5 {[%clk 0:02:57]} 5. g3 {[%clk 0:02:59]}  Nc6 {[%clk 0:02:57]} 6. Bg2 {[%clk 0:02:59]}  d4 {[%clk 0:02:57]} 7. O-O {[%clk 0:02:58]}  e5 {[%clk 0:02:58]} 8. Nh4 {[%clk 0:02:48]}  Bd6 {[%clk 0:02:55]} 9. f4 {[%clk 0:02:41]}  Bg4 {[%clk 0:02:50]} 10. Ndf3 {[%clk 0:02:33]}  exf4 {[%clk 0:02:33]} 11. gxf4 {[%clk 0:02:31]}  Nh5 {[%clk 0:02:30]} 12. h3 {[%clk 0:02:21]}  Bxf3 {[%clk 0:02:22]} 13. Nxf3 {[%clk 0:02:05]}  Nxf4 {[%clk 0:02:19]} 14. e5 {[%clk 0:01:53]}  Nxg2 {[%clk 0:02:18]} 15. exd6 {[%clk 0:01:49]}  Ne3 {[%clk 0:02:17]} 16. Qe2 {[%clk 0:01:45]}  O-O {[%clk 0:02:15]} 17. Bxe3 {[%clk 0:01:45]}  dxe3 {[%clk 0:02:14]} 18. Qxe3 {[%clk 0:01:44]}  Qxd6 {[%clk 0:02:14]} 19. Qf2 {[%clk 0:01:39]}  g6 {[%clk 0:02:07]} 20. Rae1 {[%clk 0:01:37]}  Rae8 {[%clk 0:02:03]} 21. Ng5 {[%clk 0:01:33]}  f5 {[%clk 0:02:00]} 22. c3 {[%clk 0:01:21]}  Ne5 {[%clk 0:01:30]} 23. Qh4 {[%clk 0:01:10]}  h5 {[%clk 0:01:29]} 24. Re3 {[%clk 0:01:00]}  c4 {[%clk 0:01:08]} 25. dxc4 {[%clk 0:00:43]}  Qc5 {[%clk 0:00:55]} 26. Qd4 {[%clk 0:00:36]}  Qxd4 {[%clk 0:00:54]} 27. cxd4 {[%clk 0:00:37]}  Nxc4 {[%clk 0:00:54]} 28. Rxe8 {[%clk 0:00:33]}  Rxe8 {[%clk 0:00:53]} 29. Rc1 {[%clk 0:00:32]}  Nxb2 {[%clk 0:00:49]} 30. Rb1 {[%clk 0:00:29]}  Re2 {[%clk 0:00:48]} 31. d5 {[%clk 0:00:28]}  Kf8 {[%clk 0:00:46]} 32. Rc1 {[%clk 0:00:23]}  Nd3 {[%clk 0:00:42]} 33. Rc7 {[%clk 0:00:23]}  Re1+ {[%clk 0:00:36]} 34. Kh2 {[%clk 0:00:21]}  h4 {[%clk 0:00:29]} 35. d6 {[%clk 0:00:18]}  Re2+ {[%clk 0:00:27]} 36. Kg1 {[%clk 0:00:18]}  Re1+ {[%clk 0:00:26]} 37. Kg2 {[%clk 0:00:16]}  Rd1 {[%clk 0:00:17]} 38. Nh7+ {[%clk 0:00:14]}  Ke8 {[%clk 0:00:16]} 39. Nf6+ {[%clk 0:00:12]}  Kd8 {[%clk 0:00:16]} 40. Rd7+ {[%clk 0:00:12]}  Kc8 {[%clk 0:00:16]} 41. Rc7+ {[%clk 0:00:13]}  Kd8 {[%clk 0:00:16]} 42. Rd7+ {[%clk 0:00:09]}  Kc8 {[%clk 0:00:16]} 43. Rc7+ {[%clk 0:00:08]}  Kd8 {[%clk 0:00:16]} 1/2-1/2


[Site "https://www.chess.com"]